fUST/lending_fUST_20240717
["ID","MTS","AMOUNT","RATE_DAILY","PERIOD"]
[332422700,1721171458151,-500.0,0.00023561,2]
[332422701,1721171458160,-982.81,0.00023561,2]
[332422702,1721171458171,-500.0,0.00023561,2]
[332422703,1721171458180,-558.27,0.00023561,2]
[332422704,1721171458190,-500.0,0.00023561,2]
[332422705,1721171458200,-500.0,0.00023561,2]
[332422706,1721171458210,-500.0,0.00023561,2]
[332422707,1721171458219,-824.22,0.00023561,2]
[332422708,1721171458229,-500.0,0.00023561,2]
[332422709,1721171458239,-500.0,0.00023561,2]
[332422710,1721171458249,-500.0,0.00023561,2]
[332422711,1721171458258,-500.0,0.00023561,2]
[332422712,1721171458267,-500.0,0.00023561,2]
[332422713,1721171458276,-500.0,0.00023561,2]
[332422714,1721171458286,-500.0,0.00023561,2]
[332422715,1721171458295,-500.0,0.00023561,2]
[332422716,1721171458306,-500.0,0.00023561,2]
[332422717,1721171458315,-640.12,0.00023561,2]
[332422718,1721171458324,-500.0,0.00023561,2]
[332422719,1721171458334,-500.0,0.00023561,2]
[332422720,1721171458344,-500.0,0.00023561,2]
[332422721,1721171458354,-500.0,0.00023561,2]
[332422722,1721171458363,-500.0,0.00023561,2]
[332422723,1721171458373,-1657.69,0.00023561,2]
[332422724,1721171458383,-500.0,0.00023561,2]
[332422725,1721171458392,-472.41227504,0.00023561,2]
[332422726,1721171458402,-500.0,0.00023561,2]
[332422727,1721171458412,-500.0,0.00023561,2]
[332422728,1721171458421,-500.0,0.00023561,2]
[332422729,1721171458431,-500.0,0.00023561,2]
[332422730,1721171458441,-994.01,0.00023561,2]
[332422731,1721171458451,-708.26,0.00023561,2]
[332422732,1721171458460,-500.0,0.00023561,2]
[332422733,1721171458469,-738.11,0.00023561,2]
[332422734,1721171458479,-578.52,0.00023561,2]
[332422735,1721171458488,-1415.66,0.00023561,2]
[332422736,1721171458498,-646.72,0.00023561,2]
[332422737,1721171458508,-500.0,0.00023561,2]
[332422738,1721171458517,-766.76,0.00023561,2]
[332422739,1721171458526,-20281.24,0.00023561,2]
[332422740,1721171458536,-9014.34,0.00023561,2]
[332422741,1721171458546,-500.0,0.00023561,2]
[332422742,1721171458556,-555.84,0.00023561,2]
[332422743,1721171458565,-500.0,0.00023561,2]
[332422744,1721171458575,-500.0,0.00023561,2]
[332422745,1721171458585,-500.0,0.00023561,2]
[332422746,1721171458595,-500.0,0.00023561,2]
[332422747,1721171458605,-500.0,0.00023561,2]
[332422748,1721171458615,-577.28204733,0.00023561,2]
[332422749,1721171458626,-500.0,0.00023561,2]
[332422750,1721171458637,-1366.19,0.00023561,2]
[332422751,1721171458646,-500.0,0.00023561,2]
[332422752,1721171458656,-500.0,0.00023561,2]
[332422753,1721171458665,-500.0,0.00023561,2]
[332422754,1721171458674,-500.0,0.00023561,2]
[332422755,1721171458683,-1038.75429191,0.00023567,2]
[332422756,1721171458693,-155.70377709,0.00023576,2]
[332422757,1721171458702,-1038.75429191,0.00023592,2]
[332422758,1721171458712,-153.69380405,0.00023615,2]
[332422759,1721171458722,-4665.88576162,0.00023642,2]
[332422760,1721171458731,-153.69380405,0.00023646,2]
[332422761,1721171458741,-155.70377709,0.00023667,2]
[332422762,1721171458750,-4665.88576162,0.00023692,2]
[332422763,1721171458759,-1038.75429191,0.00023694,2]
[332422764,1721171458769,-153.69380405,0.00023705,2]
[332422765,1721171458778,-151.0,0.00023714,2]
[332422766,1721171458788,-1152.0,0.00023765,2]
[332422767,1721171458798,-4665.88576162,0.00023767,2]
[332422768,1721171458808,-1788.64877304,0.00023772,2]
[332422769,1721171458817,-151.0,0.00023775,7]
[332422770,1721171458827,-151.0,0.00023775,7]
[332422771,1721171458836,-4665.88576162,0.00023779,2]
[332422772,1721171458846,-4665.88576162,0.00023799,2]
[332422773,1721171458856,-230.339713,0.00023834,7]
[332422774,1721171458865,-151.0,0.00023834,7]
[332422775,1721171458874,-500.0,0.00023834,2]
[332422776,1721171458884,-500.0,0.00023834,2]
[332422777,1721171458893,-1015.69,0.00023834,2]
[332422778,1721171458903,-1781.51,0.00023834,2]
[332422779,1721171458912,-500.0,0.00023834,2]
[332422780,1721171458922,-500.0,0.00023834,2]
[332422781,1721171458931,-637.63906499,0.00023834,2]
[332422782,1721171458941,-500.0,0.00023834,2]
[332422783,1721171458951,-663.53,0.00023834,2]
[332422784,1721171458962,-500.0,0.00023834,2]
[332422785,1721171458972,-500.0,0.00023834,2]
[332422786,1721171458981,-500.0,0.00023835,4]
[332422787,1721171458991,-500.0,0.00023835,2]
[332422788,1721171459003,-488.88803959,0.00023835,2]
[332422789,1721171459014,-500.0,0.00023835,2]
[332422790,1721171459024,-386.65129206,0.00023835,2]
[332422791,1721171459034,-500.0,0.00023835,2]
[332422792,1721171459044,-500.0,0.00023835,2]
[332422793,1721171459054,-500.0,0.00023835,2]
[332422794,1721171459063,-500.0,0.00023835,2]
[332422795,1721171459073,-500.0,0.00023835,2]
[332422796,1721171459082,-500.0,0.00023835,2]
[332422797,1721171459092,-500.0,0.00023835,2]
[332422798,1721171459101,-500.0,0.00023835,2]
[332422799,1721171459110,-500.0,0.00023835,2]
[332422800,1721171459119,-500.0,0.00023835,2]
[332422801,1721171459132,-509.6415422,0.00023835,2]
[332422802,1721171459141,-1500.0,0.00023835,2]
[332422803,1721171459151,-500.0,0.00023835,2]
[332422804,1721171459163,-933.37,0.00023835,2]
[332422805,1721171459172,-500.0,0.00023835,2]
[332422806,1721171459181,-500.0,0.00023835,2]
[332422807,1721171459192,-441.71265252,0.00023835,2]
[332422808,1721171459206,-500.0,0.00023835,2]
[332422809,1721171459218,-500.0,0.00023835,2]
[332422810,1721171459229,-500.0,0.00023835,2]
[332422811,1721171459241,-500.0,0.00023835,2]
[332422812,1721171459250,-170.03718023,0.00023835,2]
[332422813,1721171459260,-500.0,0.00023835,2]
[332422814,1721171459269,-500.0,0.00023835,2]
[332422815,1721171459279,-500.0,0.00023835,2]
[332422816,1721171459288,-212.23170378,0.00023835,2]
[332422817,1721171459298,-1623.07,0.00023835,2]
[332422818,1721171459308,-500.0,0.00023835,2]
[332422819,1721171459318,-500.0,0.00023835,2]
[332422820,1721171459328,-500.0,0.00023835,2]
[332422821,1721171459337,-500.0,0.00023835,2]
[332422822,1721171459347,-500.0,0.00023835,2]
[332422823,1721171459356,-500.0,0.00023835,2]
[332422824,1721171459366,-500.0,0.00023835,2]
[332422825,1721171459375,-200.0,0.00023835,2]
[332422826,1721171459385,-500.0,0.00023835,2]
[332422827,1721171459393,-500.0,0.00023835,2]
[332422828,1721171459402,-500.0,0.00023835,2]
[332422829,1721171459411,-710.57,0.00023835,2]
[332422830,1721171459420,-500.0,0.00023835,2]
[332422831,1721171459429,-500.0,0.00023835,2]
[332422832,1721171459439,-520.46627272,0.00023835,2]
[332422833,1721171459448,-500.0,0.00023835,2]
[332422834,1721171459457,-500.0,0.00023835,2]
[332422835,1721171459467,-350.6708682,0.00023835,2]
[332422836,1721171459476,-500.0,0.00023835,2]
[332422837,1721171459485,-500.0,0.00023835,2]
[332422838,1721171459495,-525.98,0.00023835,2]
[332422839,1721171459506,-522.4786574,0.00023835,2]
[332422840,1721171459517,-500.0,0.00023835,2]
[332422841,1721171459527,-1730.98,0.00023835,2]
[332422842,1721171459537,-500.0,0.00023835,2]
[332422843,1721171459547,-500.0,0.00023835,2]
[332422844,1721171459557,-500.0,0.00023835,2]
[332422845,1721171459566,-500.0,0.00023835,2]
[332422846,1721171459575,-500.0,0.00023835,2]
[332422847,1721171459584,-500.0,0.00023835,2]
[332422848,1721171459594,-500.0,0.00023835,2]
[332422849,1721171459603,-500.0,0.00023835,2]
[332422850,1721171459612,-500.0,0.00023835,2]
[332422851,1721171459622,-500.0,0.00023835,2]
[332422852,1721171459631,-623.94385975,0.00023835,2]
[332422853,1721171459641,-771.22,0.00023835,2]
[332422854,1721171459650,-500.0,0.00023835,2]
[332422855,1721171459659,-500.0,0.00023835,2]
[332422856,1721171459669,-500.0,0.00023835,2]
[332422857,1721171459678,-500.0,0.00023835,2]
[332422858,1721171459688,-500.0,0.00023835,2]
[332422859,1721171459697,-500.0,0.00023835,2]
[332422860,1721171459706,-500.0,0.00023835,2]
[332422861,1721171459716,-500.0,0.00023835,2]
[332422862,1721171459725,-500.0,0.00023835,2]
[332422863,1721171459734,-500.0,0.00023835,2]
[332422864,1721171459744,-500.0,0.00023835,2]
[332422865,1721171459753,-500.0,0.00023835,2]
[332422866,1721171459762,-500.0,0.00023835,2]
[332422867,1721171459771,-500.0,0.00023835,2]
[332422868,1721171459781,-532.42591313,0.00023835,2]
[332422869,1721171459790,-500.0,0.00023835,2]
[332422870,1721171459799,-500.0,0.00023835,2]
[332422871,1721171459809,-905.5,0.00023835,2]
[332422872,1721171459819,-782.98,0.00023835,2]
[332422873,1721171459828,-500.0,0.00023835,2]
[332422874,1721171459837,-1595.01,0.00023835,2]
[332422875,1721171459847,-500.0,0.00023835,2]
[332422876,1721171459856,-533.17,0.00023835,2]
[332422877,1721171459866,-751.65,0.00023835,2]
[332422878,1721171459876,-500.0,0.00023835,2]
[332422879,1721171459885,-748.5,0.00023835,2]
[332422880,1721171459894,-1564.52,0.00023835,2]
[332422881,1721171459903,-500.0,0.00023835,2]
[332422882,1721171459913,-1280.77,0.00023835,2]
[332422883,1721171459922,-500.0,0.00023835,2]
[332422884,1721171459931,-500.0,0.00023835,2]
[332422885,1721171459941,-898.73,0.00023835,2]
[332422886,1721171459951,-500.0,0.00023835,2]
[332422887,1721171459960,-500.0,0.00023835,2]
[332422888,1721171459969,-500.0,0.00023835,2]
[332422889,1721171459978,-7432.22,0.00023835,2]
[332422890,1721171459988,-1993.36,0.00023835,2]
[332422891,1721171459997,-500.0,0.00023835,2]
[332422892,1721171460008,-500.0,0.00023835,2]
[332422893,1721171460017,-982.81,0.00023835,2]
[332422894,1721171460027,-151.0,0.00023835,7]
[332422895,1721171460036,-500.0,0.00023835,2]
[332422896,1721171460045,-558.27,0.00023835,2]
[332422897,1721171460056,-500.0,0.00023835,2]
[332422898,1721171460066,-500.0,0.00023835,2]
[332422899,1721171460076,-500.0,0.00023835,2]
[332422900,1721171460086,-824.22,0.00023835,2]
[332422901,1721171460097,-500.0,0.00023835,2]
[332422902,1721171460109,-328.23183889,0.00023835,2]
[332422903,1721171460118,-500.0,0.00023835,2]
[332422904,1721171460133,-504.9385783,0.00023835,2]
[332422905,1721171460143,-500.0,0.00023835,2]
[332422906,1721171460153,-500.0,0.00023835,2]
[332422907,1721171460163,-500.0,0.00023835,2]
[332422908,1721171460173,-500.0,0.00023835,2]
[332422909,1721171460183,-500.0,0.00023835,2]
[332422910,1721171460192,-640.12,0.00023835,2]
[332422911,1721171460202,-151.0,0.00023835,7]
[332422912,1721171460211,-500.0,0.00023835,2]
[332422913,1721171460221,-500.0,0.00023835,2]
[332422914,1721171460231,-500.0,0.00023835,2]
[332422915,1721171460240,-500.0,0.00023835,2]
[332422916,1721171460250,-500.0,0.00023835,2]
[332422917,1721171460261,-1657.69,0.00023835,2]
[332422918,1721171460270,-322.93562253,0.00023835,2]
[332422919,1721171460281,-500.0,0.00023835,2]
[332422920,1721171460290,-500.0,0.00023835,2]
[332422921,1721171460299,-500.0,0.00023835,2]
[332422922,1721171460310,-500.0,0.00023835,2]
[332422923,1721171460320,-994.01,0.00023835,2]
[332422924,1721171460329,-708.26,0.00023835,2]
[332422925,1721171460339,-500.0,0.00023835,2]
[332422926,1721171460348,-738.11,0.00023835,2]
[332422927,1721171460358,-578.52,0.00023835,2]
[332422928,1721171460370,-1415.66,0.00023835,2]
[332422929,1721171460380,-151.0,0.00023835,7]
[332422930,1721171460389,-646.72,0.00023835,2]
[332422931,1721171460398,-500.0,0.00023835,2]
[332422932,1721171460407,-766.76,0.00023835,2]
[332422933,1721171460530,-20281.24,0.00023835,2]
[332422934,1721171460554,-9014.34,0.00023835,2]
[332422935,1721171460564,-500.0,0.00023835,2]
[332422936,1721171460575,-555.84,0.00023835,2]
[332422937,1721171460584,-500.0,0.00023835,2]
[332422938,1721171460593,-500.0,0.00023835,2]
[332422939,1721171460603,-500.0,0.00023835,2]
[332422940,1721171460613,-151.0,0.00023835,7]
[332422941,1721171460623,-500.0,0.00023835,2]
[332422942,1721171460633,-500.0,0.00023835,2]
[332422943,1721171460643,-500.0,0.00023835,2]
[332422944,1721171460653,-1366.19,0.00023835,2]
[332422945,1721171460663,-500.0,0.00023835,2]
[332422946,1721171460673,-500.0,0.00023835,2]
[332422947,1721171460683,-500.0,0.00023835,2]
[332422948,1721171460692,-500.0,0.00023835,2]
[332422949,1721171460701,-153.69380405,0.00023848,2]
[332422950,1721171460711,-155.70377709,0.00023857,2]
[332422951,1721171460721,-4115.26061992,0.000239,2]
[332422952,1721171460730,-1788.64877304,0.00023909,2]
[332422953,1721171460741,-150.72868836,0.00023918,7]
[332422954,1721171460752,-4665.88576162,0.00023965,2]
[332422955,1721171460763,-1038.75429191,0.00023969,2]
[332422956,1721171460772,-166.666666,0.00023969,2]
[332422957,1721171460781,-153.69380405,0.00023998,2]
[332422958,1721171460791,-3693.58647992,0.00024,30]
[332422959,1721171460802,-174.0,0.00024,2]
[332422960,1721171460812,-1038.75429191,0.00024044,2]
[332422961,1721171460821,-155.70377709,0.00024063,2]
[332422962,1721171460830,-1788.64877304,0.00024064,2]
[332422963,1721171460839,-151.0,0.00024108,2]
[332422964,1721171460849,-156.730935,0.00024108,7]
[332422965,1721171460859,-156.730935,0.00024108,7]
[332422966,1721171460868,-151.0,0.00024108,7]
[332422967,1721171460878,-151.0,0.00024108,7]
[332422968,1721171460887,-500.0,0.00024108,2]
[332422969,1721171460896,-500.0,0.00024108,2]
[332422970,1721171460905,-1015.69,0.00024108,2]
[332422971,1721171460914,-1781.51,0.00024108,2]
[332422972,1721171460925,-500.0,0.00024108,2]
[332422973,1721171460934,-500.0,0.00024108,2]
[332422974,1721171460943,-500.0,0.00024108,2]
[332422975,1721171460953,-151.0,0.00024108,7]
[332422976,1721171460963,-663.53,0.00024108,2]
[332422977,1721171460972,-500.0,0.00024108,2]
[332422978,1721171460982,-317.76184342,0.00024108,2]
[332422979,1721171460991,-500.0,0.00024109,4]
[332422980,1721171461000,-500.0,0.00024109,2]
[332422981,1721171461010,-500.0,0.00024109,2]
[332422982,1721171461020,-500.0,0.00024109,2]
[332422983,1721171461029,-442.54146874,0.00024109,2]
[332422984,1721171461039,-500.0,0.00024109,2]
[332422985,1721171461048,-500.0,0.00024109,2]
[332422986,1721171461059,-500.0,0.00024109,2]
[332422987,1721171461069,-500.0,0.00024109,2]
[332422988,1721171461079,-500.0,0.00024109,2]
[332422989,1721171461088,-500.0,0.00024109,2]
[332422990,1721171461098,-500.0,0.00024109,2]
[332422991,1721171461108,-500.0,0.00024109,2]
[332422992,1721171461117,-1500.0,0.00024109,2]
[332422993,1721171461131,-500.0,0.00024109,2]
[332422994,1721171461141,-933.37,0.00024109,2]
[332422995,1721171461150,-500.0,0.00024109,2]
[332422996,1721171461159,-185.33483968,0.00024109,2]
[332422997,1721171461169,-500.0,0.00024109,2]
[332422998,1721171461179,-500.0,0.00024109,2]
[332422999,1721171461188,-500.0,0.00024109,2]
[332423000,1721171461199,-500.0,0.00024109,2]
[332423001,1721171461208,-500.0,0.00024109,2]
[332423002,1721171461217,-622.94870663,0.00024109,2]
[332423003,1721171461226,-500.0,0.00024109,2]
[332423004,1721171461236,-1623.07,0.00024109,2]
[332423005,1721171461245,-193.13850287,0.00024109,2]
[332423006,1721171461255,-500.0,0.00024109,2]
[332423007,1721171461264,-457.53718489,0.00024109,2]
[332423008,1721171461273,-322.19019479,0.00024109,2]
[332423009,1721171461282,-500.0,0.00024109,2]
[332423010,1721171461292,-500.0,0.00024109,2]
[332423011,1721171461303,-200.0,0.00024109,2]
[332423012,1721171461313,-500.0,0.00024109,2]
[332423013,1721171461322,-500.0,0.00024109,2]
[332423014,1721171461331,-279.70913452,0.00024109,2]
[332423015,1721171461340,-710.57,0.00024109,2]
[332423016,1721171461349,-500.0,0.00024109,2]
[332423017,1721171461359,-500.0,0.00024109,2]
[332423018,1721171461369,-500.0,0.00024109,2]
[332423019,1721171461379,-503.28180853,0.00024109,2]
[332423020,1721171461388,-500.0,0.00024109,2]
[332423021,1721171461397,-500.0,0.00024109,2]
[332423022,1721171461407,-525.98,0.00024109,2]
[332423023,1721171461416,-391.78169348,0.00024109,2]
[332423024,1721171461425,-1730.98,0.00024109,2]
[332423025,1721171461435,-500.0,0.00024109,2]
[332423026,1721171461444,-500.0,0.00024109,2]
[332423027,1721171461453,-500.0,0.00024109,2]
[332423028,1721171461464,-500.0,0.00024109,2]
[332423029,1721171461473,-500.0,0.00024109,2]
[332423030,1721171461483,-500.0,0.00024109,2]
[332423031,1721171461492,-500.0,0.00024109,2]
[332423032,1721171461502,-500.0,0.00024109,2]
[332423033,1721171461511,-500.0,0.00024109,2]
[332423034,1721171461520,-500.0,0.00024109,2]
[332423035,1721171461530,-771.22,0.00024109,2]
[332423036,1721171461539,-185.36735414,0.00024109,2]
[332423037,1721171461548,-212.5264042,0.00024109,2]
[332423038,1721171461559,-500.0,0.00024109,2]
[332423039,1721171461568,-500.0,0.00024109,2]
[332423040,1721171461578,-500.0,0.00024109,2]
[332423041,1721171461588,-500.0,0.00024109,2]
[332423042,1721171461598,-500.0,0.00024109,2]
[332423043,1721171461607,-551.68391119,0.00024109,2]
[332423044,1721171461617,-500.0,0.00024109,2]
[332423045,1721171461627,-500.0,0.00024109,2]
[332423046,1721171461636,-443.70398338,0.00024109,2]
[332423047,1721171461645,-500.0,0.00024109,2]
[332423048,1721171461654,-590.393816,0.00024109,2]
[332423049,1721171461664,-905.5,0.00024109,2]
[332423050,1721171461673,-782.98,0.00024109,2]
[332423051,1721171461683,-500.0,0.00024109,2]
[332423052,1721171461692,-1595.01,0.00024109,2]
[332423053,1721171461702,-518.78853896,0.00024109,2]
[332423054,1721171461711,-533.17,0.00024109,2]
[332423055,1721171461721,-751.65,0.00024109,2]
[332423056,1721171461730,-500.0,0.00024109,2]
[332423057,1721171461739,-748.5,0.00024109,2]
[332423058,1721171461749,-1564.52,0.00024109,2]
[332423059,1721171461759,-500.0,0.00024109,2]
[332423060,1721171461768,-1280.77,0.00024109,2]
[332423061,1721171461777,-500.0,0.00024109,2]
[332423062,1721171461787,-500.0,0.00024109,2]
[332423063,1721171461797,-898.73,0.00024109,2]
[332423064,1721171461808,-500.0,0.00024109,2]
[332423065,1721171461819,-500.0,0.00024109,2]
[332423066,1721171461829,-578.836978,0.00024109,2]
[332423067,1721171461838,-7432.22,0.00024109,2]
[332423068,1721171461848,-1993.36,0.00024109,2]
[332423069,1721171461857,-500.0,0.00024109,2]
[332423070,1721171461866,-529.70473571,0.00024109,2]
[332423071,1721171461876,-982.81,0.00024109,2]
[332423072,1721171461885,-500.0,0.00024109,2]
[332423073,1721171461895,-558.27,0.00024109,2]
[332423074,1721171461904,-585.1068023,0.00024109,2]
[332423075,1721171461914,-500.0,0.00024109,2]
[332423076,1721171461924,-500.0,0.00024109,2]
[332423077,1721171461934,-824.22,0.00024109,2]
[332423078,1721171461943,-500.0,0.00024109,2]
[332423079,1721171461953,-291.36179881,0.00024109,2]
[332423080,1721171461963,-500.0,0.00024109,2]
[332423081,1721171461972,-500.0,0.00024109,2]
[332423082,1721171461982,-500.0,0.00024109,2]
[332423083,1721171461992,-500.0,0.00024109,2]
[332423084,1721171462001,-640.12,0.00024109,2]
[332423085,1721171462011,-500.0,0.00024109,2]
[332423086,1721171462020,-500.0,0.00024109,2]
[332423087,1721171462030,-500.0,0.00024109,2]
[332423088,1721171462039,-500.0,0.00024109,2]
[332423089,1721171462048,-500.0,0.00024109,2]
[332423090,1721171462059,-1657.69,0.00024109,2]
[332423091,1721171462068,-500.0,0.00024109,2]
[332423092,1721171462077,-500.0,0.00024109,2]
[332423093,1721171462086,-500.0,0.00024109,2]
[332423094,1721171462095,-500.0,0.00024109,2]
[332423095,1721171462105,-994.01,0.00024109,2]
[332423096,1721171462115,-708.26,0.00024109,2]
[332423097,1721171462127,-500.0,0.00024109,2]
[332423098,1721171462136,-738.11,0.00024109,2]
[332423099,1721171462145,-578.52,0.00024109,2]
[332423100,1721171462157,-1415.66,0.00024109,2]
[332423101,1721171462167,-646.72,0.00024109,2]
[332423102,1721171462176,-500.0,0.00024109,2]
[332423103,1721171462186,-766.76,0.00024109,2]
[332423104,1721171462196,-8747.66093793,0.00024109,2]
[332423105,1721171462337,-2779.88725251,0.00024109,2]
[332423106,1721171462495,-154.69833824,0.00020545,2]
[332423107,1721171462505,-500.0,0.00021917,2]
[332423108,1721171462514,-500.0,0.00022191,2]
[332423109,1721171462524,-500.0,0.00022191,2]
[332423110,1721171462533,-500.0,0.00022465,2]
[332423111,1721171462542,-500.0,0.00022465,2]
[332423112,1721171462552,-385.08862488,0.00022739,2]
[332423113,1721171462563,-461.1673835,0.00022739,2]
[332423114,1721171462607,-38.8326165,0.00022739,2]
[332423115,1721171462616,-375.87212794,0.00022739,2]
[332423116,1721171462766,-124.12787206,0.00022739,2]
[332423117,1721171462775,-500.0,0.00023013,2]
[332423118,1721171462785,-500.0,0.00023013,2]
[332423119,1721171462794,-500.0,0.00023013,2]
[332423120,1721171462803,-403.79854803,0.00023287,2]
[332423121,1721171462815,-500.0,0.00023287,2]
[332423122,1721171462824,-500.0,0.00023287,2]
[332423123,1721171462833,-500.0,0.00023561,2]
[332423124,1721171462845,-500.0,0.00023561,2]
[332423125,1721171462854,-200.0,0.00023673,2]
[332423126,1721171462865,-500.0,0.00023835,2]
[332423127,1721171462874,-500.0,0.00023835,2]
[332423128,1721171462884,-4343.07837091,0.00024109,2]
[332423129,1721171463223,-500.0,0.00021917,2]
[332423130,1721171463233,-500.0,0.00021917,2]
[332423131,1721171463242,-505.06458821,0.00022191,2]
[332423132,1721171463252,-500.0,0.00022191,2]
[332423133,1721171463262,-500.0,0.00022465,2]
[332423134,1721171463271,-151.0,0.00023013,7]
[332423135,1721171463280,-3278.61627423,0.00024109,2]
[332423136,1721171700791,540.66323809,0.00015998,2]
[332423137,1721171710648,201.96843732,0.00014999,2]
[332423154,1721172035295,456.22,0.0001525,2]
[332423155,1721172039953,24900.0,0.0001525,2]
[332423156,1721172125976,305.505901,0.00015269,2]
[332423158,1721172287473,586.3147193,0.0001525,2]
[332423161,1721172323942,5894.453987,0.00016,2]
[332423164,1721172351082,5000.0,0.00016,2]
[332423172,1721172464908,482.39291863,0.00014999,2]
[332423176,1721172516420,329.18,0.00010959,2]
[332423177,1721172548767,2673.02150699,0.00013283,2]
[332423179,1721172570883,672.60191767,0.00013283,7]
[332423180,1721172631202,305.505901,0.00015247,2]
[332423228,1721172631979,-349.43503918,0.00016132,2]
[332423231,1721172631993,-865.03144243,0.00016154,2]
[332423233,1721172632005,-1161.23252583,0.00016154,2]
[332423235,1721172632015,-97.70795906,0.00016243,2]
[332423372,1721172640015,-202.29204094,0.00016243,2]
[332423376,1721172640031,-300.0,0.00016243,2]
[332423379,1721172640042,-500.0,0.00016244,2]
[332423382,1721172640054,-500.0,0.00016244,2]
[332423385,1721172640064,-500.0,0.00016244,2]
[332423388,1721172640076,-500.0,0.00016244,2]
[332423391,1721172640088,-500.0,0.00016244,2]
[332423394,1721172640100,-500.0,0.00016244,2]
[332423396,1721172640111,-500.0,0.00016244,2]
[332423398,1721172640122,-389.59271718,0.00016244,2]
[332423401,1721172640132,-500.0,0.00016244,2]
[332423404,1721172640143,-500.0,0.00016244,2]
[332423408,1721172640155,-500.0,0.00016244,2]
[332423412,1721172640166,-500.0,0.00016244,2]
[332423415,1721172640176,-500.0,0.00016244,2]
[332423418,1721172640186,-500.0,0.00016244,2]
[332423421,1721172640198,-500.0,0.00016244,2]
[332423424,1721172640209,-500.0,0.00016244,2]
[332423426,1721172640221,-500.0,0.00016244,2]
[332423429,1721172640232,-500.0,0.00016244,2]
[332423432,1721172640243,-500.0,0.00016244,2]
[332423435,1721172640253,-500.0,0.00016244,2]
[332423439,1721172640263,-500.0,0.00016244,2]
[332423442,1721172640276,-500.0,0.00016244,2]
[332423445,1721172640294,-500.0,0.00016244,2]
[332423448,1721172640308,-500.0,0.00016244,2]
[332423451,1721172640319,-500.0,0.00016244,2]
[332423453,1721172640330,-500.0,0.00016244,2]
[332423455,1721172640341,-500.0,0.00016244,2]
[332423457,1721172640351,-500.0,0.00016244,2]
[332423459,1721172640363,-300.0,0.00016244,2]
[332423461,1721172640374,-500.0,0.00016244,2]
[332423464,1721172640386,-310.25278775,0.00016244,2]
[332423465,1721172640396,-472.86035657,0.00016244,2]
[332423467,1721172640406,-244.65708507,0.00016244,2]
[332423470,1721172640418,-155076.113486,0.00016245,2]
[332423472,1721172640428,-408.82074275,0.00016254,2]
[332423474,1721172640438,-500.0,0.00016254,2]
[332423476,1721172640449,-500.0,0.00016254,2]
[332423478,1721172640463,-500.0,0.00016254,2]
[332423481,1721172640475,-321.67637178,0.00016254,2]
[332423483,1721172640488,-500.0,0.00016254,2]
[332423485,1721172640500,-500.0,0.00016254,2]
[332423487,1721172640512,-263.29790616,0.00016254,2]
[332423489,1721172640524,-500.0,0.00016254,2]
[332423492,1721172640543,-500.0,0.00016254,2]
[332423494,1721172640554,-500.0,0.00016254,2]